bitfinex-derivatives/quotes_BTCF0:USTF0_20250812
["timestamp","ask_amount","ask_price","bid_price","bid_amount"]
[1755022478978,0.35868,119810.0,119800.0,0.60677313]
[1755022479178,0.35868,119810.0,119800.0,0.63142313]
[1755022479479,0.35868,119810.0,119800.0,0.1240205]
[1755022479682,0.35868,119810.0,119800.0,0.63142313]
[1755022483487,0.35868,119810.0,119800.0,0.0834605]
[1755022483684,0.11678,119810.0,119800.0,0.0834605]
[1755022483992,0.11678,119840.0,119830.0,0.0993496]
[1755022484178,0.14084271,119840.0,119830.0,0.60675223]
[1755022484683,0.11678,119840.0,119830.0,0.60675223]
[1755022485083,0.35868,119840.0,119830.0,0.60675223]
[1755022485474,0.11678,119840.0,119830.0,0.63140223]
[1755022486083,0.35868,119840.0,119830.0,0.63140223]
[1755022486284,0.42630999,119840.0,119830.0,0.63140223]
[1755022486483,0.42630999,119840.0,119830.0,0.63977523]
[1755022486683,0.18440999,119840.0,119830.0,0.63977523]
[1755022487084,0.09677004,119870.0,119860.0,0.0834187]
[1755022487282,0.1525387,119860.0,119850.0,0.84109523]
[1755022487586,0.68469133,119860.0,119850.0,0.3336926]
[1755022487782,0.68469133,119860.0,119850.0,0.2502688]
[1755022488385,0.68469133,119860.0,119850.0,0.166845]
[1755022488587,1.48081133,119860.0,119850.0,0.166845]
[1755022489287,1.50372133,119860.0,119850.0,0.166845]
[1755022490087,0.1145357,119850.0,119840.0,0.75770013]
[1755022490390,0.2002126,119840.0,119830.0,0.3337477]
[1755022490786,0.2002126,119840.0,119830.0,0.3583977]
[1755022491589,0.9961326,119840.0,119830.0,0.3583977]
[1755022491791,1.2382326,119840.0,119830.0,0.3583977]
[1755022492592,0.2421,119840.0,119830.0,0.96364033]
[1755022492782,0.2421,119840.0,119830.0,1.47104296]
[1755022493294,0.2058187,119840.0,119830.0,2.26684296]
[1755022495985,0.2058187,119840.0,119830.0,1.75944033]
[1755022496389,0.2996887,119840.0,119830.0,1.75944033]
[1755022496695,0.3225987,119840.0,119830.0,1.75944033]
[1755022497090,0.3225987,119840.0,119830.0,0.96364033]
[1755022498086,0.2058187,119840.0,119830.0,1.47104296]
[1755022498290,0.2058187,119840.0,119830.0,0.96364033]
[1755022498691,0.2390487,119840.0,119830.0,0.96364033]
[1755022499092,0.2058187,119840.0,119830.0,1.47104296]
[1755022499301,0.1808187,119840.0,119830.0,1.47104296]
[1755022499492,0.1424987,119840.0,119830.0,1.47104296]
[1755022500794,0.02443,119860.0,119850.0,0.1625557]
[1755022500996,0.02443,119860.0,119850.0,0.66995833]
[1755022507902,0.02443,119860.0,119850.0,0.1625557]
[1755022508105,0.02443,119860.0,119850.0,0.66995833]
[1755022512106,0.07362,119860.0,119850.0,0.66995833]
[1755022512310,0.03965,119860.0,119850.0,0.66995833]
[1755022512695,0.07362,119860.0,119850.0,0.66995833]
[1755022513508,0.03965,119860.0,119850.0,0.66995833]
[1755022516110,0.02443,119860.0,119850.0,0.66995833]
[1755022532428,0.04313004,119870.0,119860.0,0.08071]
[1755022532628,0.04313004,119870.0,119860.0,1.46489133]
[1755022532629,0.02452,119870.0,119860.0,1.46489133]
[1755022533027,0.02462,119880.0,119870.0,0.08071]
[1755022533221,0.02462,119880.0,119870.0,1.17892696]
[1755022534126,0.02462,119880.0,119870.0,0.67152433]
[1755022534527,0.07472,119880.0,119870.0,0.67152433]
[1755022535525,0.07472,119880.0,119870.0,0.68002493]
[1755022537033,0.04068,119880.0,119870.0,0.68002493]
[1755022537436,0.0001,119880.0,119870.0,0.68002493]
[1755022537833,0.02462,119880.0,119870.0,0.68002493]
[1755022540428,0.0001,119880.0,119870.0,0.68002493]
[1755022540629,0.02462,119880.0,119870.0,0.68002493]
[1755022542133,0.02462,119880.0,119870.0,1.18742756]
[1755022542832,0.0001,119880.0,119870.0,1.18742756]
[1755022543039,0.02462,119880.0,119870.0,1.18742756]
[1755022544242,0.0001,119880.0,119870.0,1.18742756]
[1755022544734,0.0246,119890.0,119880.0,0.1641148]
[1755022544941,0.0246,119890.0,119880.0,1.97136006]
[1755022545142,8e-05,119890.0,119880.0,1.97136006]
[1755022546136,8e-05,119890.0,119880.0,2.03960784]
[1755022547235,1.52452,119910.0,119900.0,0.0243]
[1755022547436,0.02452,119910.0,119900.0,1.46378353]
[1755022547637,0.08454,119910.0,119900.0,1.46378353]
[1755022547838,0.12134,119910.0,119900.0,1.46378353]
[1755022548137,0.0505,119910.0,119900.0,1.46378353]
[1755022548540,0.02452,119910.0,119900.0,1.46378353]
[1755022548743,0.19932,119920.0,119910.0,0.1640939]
[1755022549046,0.19932,119920.0,119910.0,1.17889916]
[1755022549727,0.1748,119920.0,119910.0,1.17889916]
[1755022550543,0.19932,119920.0,119910.0,1.17889916]
[1755022550744,0.28241,119920.0,119910.0,0.67149653]
[1755022551043,0.29614,119920.0,119910.0,0.1640939]
[1755022551444,0.29614,119920.0,119910.0,0.67149653]
[1755022552643,0.379517,119920.0,119910.0,0.59078663]
[1755022553343,0.29614,119920.0,119910.0,0.67149663]
[1755022554444,0.2253,119920.0,119910.0,0.67149663]
[1755022554644,0.29614,119920.0,119910.0,0.67149663]
[1755022556144,0.19932,119920.0,119910.0,1.17889926]
[1755022558144,0.1748,119920.0,119910.0,1.17889926]
[1755022560751,0.13511578,119950.0,119940.0,0.1619431]
[1755022561045,0.13511578,119950.0,119940.0,0.66934573]
[1755022561346,0.30991578,119950.0,119940.0,0.9533431]
[1755022561548,0.39327188,119950.0,119940.0,0.9533431]
[1755022561748,0.39327188,119950.0,119940.0,0.1619431]
[1755022561948,0.21847188,119950.0,119940.0,0.66934573]
[1755022562145,0.39327188,119950.0,119940.0,0.1619431]
[1755022562347,0.39327188,119950.0,119940.0,0.66934573]
[1755022562650,0.30991578,119950.0,119940.0,0.66934573]
[1755022563149,0.13511578,119950.0,119940.0,0.66934573]
[1755022564243,0.11662,119950.0,119940.0,0.1619431]
[1755022564443,0.1999763,119950.0,119940.0,0.1619431]
[1755022564649,0.11662,119950.0,119940.0,0.66934573]
[1755022564850,0.11662,119950.0,119940.0,0.67783462]
[1755022565250,0.1999763,119950.0,119940.0,0.67783462]
[1755022565750,0.11662,119950.0,119940.0,0.67783462]
[1755022566451,0.11662,119950.0,119940.0,0.17043199]
[1755022566646,0.1999763,119950.0,119940.0,0.67783462]
[1755022567854,0.11662,119950.0,119940.0,0.67783462]
[1755022568053,0.11662,119950.0,119940.0,0.92791962]
[1755022568353,0.44247842,119960.0,119950.0,0.1619363]
[1755022568552,0.44247842,119960.0,119950.0,0.66933893]
[1755022569050,0.35912902,119960.0,119950.0,1.46041893]
[1755022569753,0.18432902,119960.0,119950.0,1.46041893]
[1755022569949,0.02268,119960.0,119950.0,1.46041893]
[1755022570150,0.19748,119970.0,119960.0,0.1294694]
[1755022570354,0.19748,119970.0,119960.0,1.17673466]
[1755022570546,0.1748,119970.0,119960.0,1.17673466]
[1755022570747,0.19748,119970.0,119960.0,1.17673466]
[1755022570943,0.04763,119970.0,119960.0,0.1619294]
[1755022571146,0.26954,119970.0,119960.0,0.9529294]
[1755022571344,0.29142,119970.0,119960.0,1.46033203]
[1755022572155,0.1999624,119970.0,119960.0,0.66933203]
[1755022572351,0.1999624,119970.0,119960.0,0.1619294]
[1755022572654,0.1999624,119970.0,119960.0,0.0833494]
[1755022572655,0.2238439,119970.0,119960.0,0.0833494]
[1755022572856,0.1999694,119960.0,119950.0,0.78938703]
[1755022573062,0.70737203,119960.0,119950.0,0.1667081]
[1755022573352,0.1999763,119950.0,119940.0,0.0833615]
[1755022573544,0.1999833,119940.0,119930.0,0.2501025]
[1755022573745,0.32871403,119940.0,119920.0,0.3335006]
[1755022573951,0.1999902,119930.0,119920.0,0.3335006]
[1755022574260,0.1999972,119920.0,119910.0,0.80367123]
[1755022574562,0.11662,119920.0,119910.0,0.83613123]
[1755022575153,0.04763,119920.0,119910.0,0.83613123]
[1755022575460,0.19556463,119940.0,119930.0,0.1300301]
[1755022575657,0.19556463,119940.0,119930.0,0.66935273]
[1755022575851,0.11220133,119940.0,119930.0,0.66935273]
[1755022576060,0.04763,119940.0,119930.0,0.66935273]
[1755022576561,0.1999832,119940.0,119930.0,0.1073801]
[1755022576749,0.1999901,119930.0,119920.0,0.3354945]
[1755022576949,0.1999901,119930.0,119920.0,0.3334945]
[1755022577260,0.1999901,119930.0,119920.0,0.1667437]
[1755022577655,0.1999901,119930.0,119920.0,0.0833711]
[1755022577854,0.1999901,119930.0,119920.0,0.59077373]
[1755022578058,0.1999901,119930.0,119920.0,0.0833711]
[1755022578361,0.1999901,119930.0,119920.0,0.59077373]
[1755022578752,0.26571529,119930.0,119920.0,0.0833711]
[1755022579258,0.1999901,119930.0,119920.0,0.0843711]
[1755022579850,1.23319677,119930.0,119920.0,0.0843771]
[1755022580057,0.6415581,119930.0,119920.0,0.0843771]
[1755022580764,1.23319677,119930.0,119920.0,0.001]
[1755022581061,0.186484,119910.0,119900.0,0.1667776]
[1755022581254,0.991044,119910.0,119900.0,0.1667776]
[1755022581954,0.29748,119930.0,119910.0,0.3287276]
[1755022582155,0.35994,119930.0,119920.0,0.75519567]
[1755022582360,0.35994,119930.0,119920.0,0.129497]
[1755022582361,0.29748,119930.0,119920.0,0.129497]
[1755022582765,0.4279601,119930.0,119920.0,0.083377]
[1755022583756,1.18636677,119930.0,119920.0,0.083377]
[1755022584066,0.153167,119920.0,119910.0,0.3335316]
[1755022584366,0.153167,119920.0,119910.0,0.2501476]
[1755022584960,0.153167,119920.0,119910.0,0.1667636]
[1755022585157,0.427967,119920.0,119910.0,0.1667636]
[1755022585361,0.34459,119920.0,119910.0,0.1667636]
[1755022585664,0.34459,119920.0,119910.0,0.80452227]
[1755022585856,0.06979,119920.0,119910.0,0.80452227]
[1755022586056,0.06979,119920.0,119910.0,0.2138836]
[1755022586358,0.39142,119920.0,119910.0,0.80552227]
[1755022586553,0.39142,119920.0,119910.0,0.81533227]
[1755022586768,0.39142,119920.0,119910.0,0.83798227]
[1755022587073,0.39142,119920.0,119910.0,0.80552227]
[1755022587457,0.474797,119920.0,119910.0,0.2138836]
[1755022587959,0.474797,119920.0,119910.0,0.0843796]
[1755022588957,0.39142,119920.0,119910.0,0.0843796]
[1755022589558,0.39142,119920.0,119910.0,0.67601827]
[1755022589761,0.39142,119920.0,119910.0,0.71057827]
[1755022589961,0.39142,119920.0,119910.0,0.72427827]
[1755022590671,0.474797,119920.0,119910.0,0.72427827]
[1755022590868,0.474797,119920.0,119910.0,0.1189396]
[1755022591260,0.39142,119920.0,119910.0,0.1189396]
[1755022592367,0.39142,119920.0,119910.0,0.71057827]
[1755022592669,0.39142,119920.0,119910.0,0.72427827]
[1755022592866,0.39142,119920.0,119910.0,0.75723827]
[1755022593073,0.3779,119920.0,119910.0,0.75723827]
[1755022593261,0.35602,119920.0,119910.0,0.75823827]
[1755022594075,0.35602,119920.0,119910.0,0.1665996]
[1755022594264,0.35602,119920.0,119910.0,0.75723827]
[1755022594572,0.39249,119920.0,119910.0,0.75723827]
[1755022595071,0.11769,119920.0,119910.0,0.75823827]
[1755022595468,0.04649,119920.0,119910.0,0.75923827]
[1755022595667,0.04649,119920.0,119910.0,0.75823827]
[1755022595668,0.02268,119920.0,119910.0,0.75823827]
[1755022595869,0.02268,119920.0,119910.0,0.76023827]
[1755022597359,0.4999,119930.0,119920.0,0.08122]
[1755022597566,0.461555,119930.0,119920.0,1.55075617]
[1755022597961,0.4378379,119930.0,119920.0,1.55075617]
[1755022598174,0.2205591,119930.0,119920.0,1.55075617]
[1755022598470,0.02431,119950.0,119940.0,0.0931938]
[1755022598672,0.02431,119950.0,119940.0,1.49589247]
[1755022599059,0.02431,119950.0,119940.0,1.73227937]
[1755022599265,0.02431,119950.0,119940.0,1.1406407]
[1755022599463,0.02431,119950.0,119940.0,1.73227937]
[1755022599674,0.02431,119950.0,119940.0,1.74597937]
[1755022600466,0.05159805,119960.0,119950.0,0.1231269]
[1755022600663,0.05159805,119960.0,119950.0,0.73829557]
[1755022601769,0.01872805,119960.0,119950.0,0.73829557]
[1755022601970,5e-08,119960.0,119950.0,0.73829557]
[1755022602370,5e-08,119960.0,119950.0,1.32993424]
[1755022602766,0.10488,119980.0,119970.0,0.109213]
[1755022603067,0.10488,119980.0,119970.0,0.73828167]
[1755022603477,0.11909,119980.0,119970.0,0.73828167]
[1755022603774,0.11909,119980.0,119970.0,0.146643]
[1755022603961,0.11909,119980.0,119970.0,0.73828167]
[1755022604166,0.11909,119980.0,119970.0,0.146643]
[1755022604369,0.11909,119980.0,119970.0,0.95087617]
[1755022604562,0.2024261,119980.0,119970.0,0.3592375]
[1755022604763,0.11909,119980.0,119970.0,0.3592375]
[1755022604967,0.11909,119980.0,119970.0,0.3729375]
[1755022605167,0.2024261,119980.0,119970.0,0.96457617]
[1755022605571,0.2024261,119980.0,119970.0,0.3729375]
[1755022606874,0.2024261,119980.0,119970.0,0.3333675]
[1755022607078,0.2024261,119980.0,119970.0,0.3729375]
[1755022607264,0.2024261,119980.0,119970.0,0.98830617]
[1755022607670,0.11909,119980.0,119970.0,0.98830617]
[1755022607871,0.2024264,119980.0,119970.0,0.3966675]
[1755022608176,0.2024264,119980.0,119970.0,0.98830617]
[1755022608470,0.2024264,119980.0,119970.0,0.3966675]
[1755022608677,0.2024264,119980.0,119970.0,0.98830617]
[1755022608876,0.11909,119980.0,119970.0,0.98830617]
[1755022609082,0.02431,119980.0,119970.0,0.98830617]
[1755022609976,0.37002574,119990.0,119980.0,0.1466364]
[1755022610281,0.20335554,119990.0,119980.0,0.1466364]
[1755022610575,0.28668494,119990.0,119980.0,0.73827507]
[1755022610776,0.18914554,119990.0,119980.0,0.73827507]
[1755022610985,0.04264991,119990.0,119980.0,0.73827507]
[1755022611276,0.11909,120010.0,120000.0,0.3728415]
[1755022611476,0.11909,120010.0,120000.0,0.96448017]
[1755022611777,0.11909,120010.0,120000.0,0.3965715]
[1755022612166,0.11909,120020.0,120010.0,0.1228855]
[1755022612476,0.11909,120020.0,120010.0,0.1466155]
[1755022612781,0.2023986,120020.0,120010.0,0.1466155]
[1755022612975,0.11909,120020.0,120010.0,0.1466155]
[1755022613478,0.2023986,120020.0,120010.0,0.1466155]
[1755022613668,0.26854766,120020.0,120010.0,0.1466155]
[1755022614480,0.86018633,120020.0,120010.0,0.0833155]
[1755022614983,0.2024056,120010.0,120000.0,0.2499504]
[1755022615583,0.2024056,120010.0,120000.0,0.1666322]
[1755022615982,0.2024056,120010.0,119990.0,0.2499836]
[1755022615983,0.2024125,120000.0,119990.0,0.2499836]
[1755022616485,0.2024125,120000.0,119990.0,0.2636836]
[1755022617770,0.6665369,120010.0,119990.0,0.2758536]
[1755022617973,0.61899,120010.0,120000.0,0.73826147]
[1755022618674,0.60478,120010.0,120000.0,0.73826147]
[1755022618873,0.10488,120010.0,120000.0,0.73826147]
[1755022619074,0.60478,120010.0,120000.0,0.73826147]
[1755022619880,0.60478,120010.0,120000.0,0.1466228]
[1755022620084,0.60478,120010.0,120000.0,0.73826147]
[1755022620284,0.60478,120010.0,120000.0,0.1466228]
[1755022620484,0.61853,120010.0,120000.0,0.1466228]
[1755022620681,0.11863,120010.0,120000.0,0.1466228]
[1755022621488,1.56139769,120020.0,120010.0,0.1091559]
[1755022621987,1.56139769,120020.0,120010.0,0.1235959]
[1755022622388,0.78599769,120020.0,120010.0,0.1235959]
[1755022622590,1.61031769,120020.0,120010.0,0.1235959]
[1755022622980,1.61031769,120020.0,120010.0,0.71523457]
[1755022623187,1.50852906,120020.0,120010.0,0.73790457]
[1755022623891,1.59183796,120020.0,120010.0,0.1235959]
[1755022624077,0.79110657,120020.0,120010.0,0.1235959]
[1755022624389,0.64164861,120020.0,120010.0,0.1462659]
[1755022624689,0.64164861,120020.0,120010.0,0.73790457]
[1755022625383,0.52348861,120020.0,120010.0,0.73790457]
[1755022625586,0.56914,120020.0,120010.0,0.73790457]
[1755022625789,0.56914,120020.0,120010.0,0.1462659]
[1755022625992,0.11816,120020.0,120010.0,0.73790457]
[1755022627189,0.11816,120020.0,120010.0,0.1462659]
[1755022627382,0.11816,120020.0,120010.0,0.73790457]
[1755022627584,0.74485216,120030.0,120020.0,0.06295]
[1755022627785,0.76848864,120030.0,120020.0,0.73789757]
[1755022628282,0.79182864,120030.0,120020.0,0.1462589]
[1755022628485,0.79182864,120030.0,120020.0,0.71522757]
[1755022629085,0.79182864,120030.0,120020.0,0.1235889]
[1755022629683,0.79182864,120030.0,120020.0,0.1091489]
[1755022630088,0.79182864,120030.0,120020.0,0.0927089]
[1755022631091,0.79182864,120030.0,120020.0,0.0833089]
[1755022631699,0.79182864,120030.0,120020.0,0.73789757]
[1755022631700,1.61390844,120030.0,120020.0,0.73789757]
[1755022631892,1.53060644,120030.0,120020.0,0.73789757]
[1755022632090,0.70852644,120030.0,120020.0,0.73789757]
[1755022632595,0.69477644,120030.0,120020.0,0.73789757]
[1755022632992,0.70852644,120030.0,120020.0,0.73789757]
[1755022633181,0.52363648,120030.0,120020.0,0.73789757]
[1755022633388,0.61563648,120030.0,120020.0,0.1462589]
[1755022633582,0.64179648,120030.0,120020.0,0.73789757]
[1755022633986,0.14189648,120030.0,120020.0,0.73789757]
[1755022634191,0.09599648,120030.0,120020.0,0.73789757]
[1755022634391,0.04707648,120030.0,120020.0,0.73789757]
[1755022634599,0.02344,120030.0,120020.0,0.73789757]
[1755022634783,0.0001,120030.0,120020.0,0.73789757]
[1755022635491,0.02375238,120030.0,120020.0,0.73789757]
[1755022635691,0.0001,120030.0,120020.0,0.73789757]
[1755022635892,0.02344,120030.0,120020.0,0.73789757]
[1755022636087,0.02344,120030.0,120020.0,0.1462589]
[1755022636400,0.14191269,120030.0,120020.0,0.73789757]
[1755022636697,0.14191269,120030.0,120020.0,0.65022712]
[1755022636893,0.14191269,120030.0,120020.0,0.61311712]
[1755022637097,0.14191269,120030.0,120020.0,0.65022712]
[1755022637889,0.14191269,120030.0,120020.0,0.62755712]
[1755022638092,0.22521479,120030.0,120020.0,0.62755712]
[1755022638692,0.14191269,120030.0,120020.0,0.62755712]
[1755022638901,0.14191269,120030.0,120020.0,0.1235889]
[1755022639097,0.14191269,120030.0,120020.0,0.61311712]
[1755022639098,1.04581479,120030.0,120020.0,0.61311712]
[1755022639401,1.04581479,120030.0,120020.0,0.0833089]
[1755022640097,0.201469,120020.0,120010.0,0.3476992]
[1755022640295,0.2333241,120020.0,120010.0,0.3332592]
[1755022640593,0.22512169,120020.0,120010.0,0.87750742]
[1755022640792,0.22512169,120020.0,120010.0,0.3735392]
[1755022642205,0.22512169,120020.0,120010.0,0.3332592]
[1755022642707,0.22512169,120020.0,120010.0,0.3735392]
[1755022643202,0.4514481,120010.0,120000.0,0.0833188]
[1755022643503,1.9051177,120010.0,120000.0,0.0833188]
[1755022643703,1.31435985,120010.0,120000.0,0.0833188]
[1755022644001,1.41435985,120010.0,120000.0,0.0833188]
[1755022644300,1.31435985,120010.0,120000.0,0.0833188]
[1755022644693,1.14835405,120010.0,120000.0,0.0977588]
[1755022645301,0.32687405,120010.0,120000.0,0.0977588]
[1755022645601,0.98175175,120010.0,120000.0,0.73702665]
[1755022645802,0.16023175,120010.0,120000.0,0.73702665]
[1755022645997,0.04207175,120010.0,120000.0,0.73702665]
[1755022646509,0.02365269,120010.0,120000.0,0.73702665]
[1755022646698,0.52324,120020.0,120010.0,0.1462659]
[1755022646893,0.60182663,120020.0,120010.0,0.73702375]
[1755022647093,0.64173663,120020.0,120010.0,0.73702375]
[1755022647298,0.72504563,120020.0,120010.0,0.1235959]
[1755022647504,0.14183663,120020.0,120010.0,0.1462659]
[1755022647701,0.22514563,120020.0,120010.0,0.1462659]
[1755022648005,0.22514563,120020.0,120010.0,0.73702375]
[1755022649201,1.04614563,120020.0,120010.0,0.73702375]
[1755022649603,1.04598563,120020.0,120010.0,0.73702375]
[1755022649808,1.04598563,120020.0,120010.0,0.0833159]
[1755022650404,1.88668748,120020.0,120010.0,0.0833159]
[1755022650711,1.29592963,120020.0,120010.0,0.0833159]
[1755022651415,1.21261373,120020.0,120010.0,0.0833159]
[1755022652115,1.71251373,120020.0,120010.0,0.0833159]
[1755022652315,1.71251373,120020.0,120010.0,0.0980359]
[1755022653113,1.71251373,120020.0,120010.0,0.0833159]
[1755022653305,1.6888371,120020.0,120010.0,0.0833159]
[1755022653510,1.7988371,120020.0,120010.0,0.0833159]
[1755022653706,0.2039059,120010.0,120000.0,0.24996]
[1755022653901,0.2039059,120010.0,120000.0,0.0833186]
[1755022654100,0.79466375,120010.0,120000.0,0.0833186]
[1755022654310,0.2039059,120010.0,120000.0,0.0833186]
[1755022655807,1.40456375,120010.0,120000.0,0.0833186]
[1755022656017,0.7038059,120010.0,120000.0,0.0833186]
[1755022656210,0.8138059,120010.0,120000.0,0.0833186]
[1755022657214,0.3139059,120010.0,120000.0,0.0833186]
[1755022657513,0.8138059,120010.0,120000.0,0.0833186]
[1755022658412,0.1310629,120000.0,119990.0,0.3333128]
[1755022658711,1.0230729,120000.0,119990.0,0.3333128]
[1755022659108,1.0230729,120000.0,119990.0,0.3480328]
[1755022659410,1.0230729,120000.0,119990.0,0.3333128]
[1755022659617,1.0230729,120000.0,119990.0,0.3591628]
[1755022659810,1.0230728,120000.0,119990.0,0.98895065]
[1755022660109,1.0230728,120000.0,119990.0,0.3981928]
[1755022660410,1.0230728,120000.0,119990.0,0.96464065]
[1755022660614,1.0230728,120000.0,119990.0,0.3591628]
[1755022661113,1.0230728,120000.0,119990.0,0.3333128]
[1755022661310,1.0230728,120000.0,119990.0,0.2499846]
[1755022662416,1.5229728,120000.0,119990.0,0.2499846]
[1755022665616,1.5229728,120000.0,119990.0,0.2647046]
[1755022666222,1.5229728,120000.0,119990.0,0.2499846]
[1755022668820,1.5229728,120000.0,119990.0,0.2905546]
[1755022670318,1.5229728,120000.0,119990.0,0.2758346]
[1755022670526,1.5229728,120000.0,119990.0,0.2499846]
[1755022673922,0.4999,120000.0,119990.0,1.3234929]
[1755022674317,0.4999,120000.0,119990.0,0.81917875]
[1755022675623,0.04611,120010.0,120000.0,0.0992226]
[1755022675818,0.09875,120010.0,120000.0,0.65251675]
[1755022676526,0.09875,120010.0,120000.0,0.1482026]
[1755022676824,0.09875,120010.0,120000.0,0.73891859]
[1755022676825,0.09565,120010.0,120000.0,0.73891859]
[1755022679127,0.08082,120010.0,120000.0,0.1482026]
[1755022679328,0.08082,120010.0,120000.0,0.73891859]
[1755022682629,0.54156983,120020.0,120010.0,0.1455857]
[1755022682833,0.54156983,120020.0,120010.0,0.73630169]
[1755022682834,0.57559983,120020.0,120010.0,0.73630169]
[1755022683126,0.54156983,120020.0,120010.0,0.73630169]
[1755022683330,0.54156983,120020.0,120010.0,0.1455857]
[1755022683331,0.13777983,120020.0,120010.0,0.1455857]
[1755022683724,0.13777983,120020.0,120010.0,0.73630169]
[1755022685930,0.22108863,120020.0,120010.0,0.67403169]
[1755022686129,0.13777983,120020.0,120010.0,0.1225357]
[1755022686334,0.13777983,120020.0,120010.0,0.71325169]
[1755022686726,0.13777983,120020.0,120010.0,0.73630169]
[1755022687625,0.13777983,120020.0,120010.0,0.71325169]
[1755022688227,0.13777983,120020.0,120010.0,0.73630169]
[1755022689435,0.11889,120020.0,120010.0,0.73630169]
[1755022689635,0.10489,120020.0,120010.0,0.73630169]
[1755022690630,1.4095419,120030.0,120010.0,0.90292849]
[1755022690834,0.02278,120020.0,120010.0,0.3585282]
[1755022691337,0.02278,120020.0,120010.0,0.3955282]
[1755022691835,0.11889,120020.0,120010.0,0.3955282]
[1755022692037,0.11889,120020.0,120010.0,0.98624419]
[1755022692537,0.10489,120020.0,120010.0,0.98624419]
[1755022693551,0.02278,120060.0,120040.0,0.0832941]
[1755022693848,0.06952,120050.0,120040.0,0.3331782]
[1755022694053,0.11889,120050.0,120040.0,0.3331782]
[1755022694249,0.11889,120050.0,120040.0,0.92389419]
[1755022694650,0.2021812,120050.0,120040.0,0.92389419]
[1755022694956,0.26717427,120050.0,120040.0,0.3331782]
[1755022695254,0.26717427,120050.0,120040.0,0.3341782]
[1755022697057,0.26717427,120050.0,120040.0,0.3541782]
[1755022697058,0.24717427,120050.0,120040.0,0.3541782]
[1755022697856,0.24717427,120050.0,120040.0,0.2708818]
[1755022698242,0.24717427,120050.0,120040.0,0.2498818]
[1755022699454,0.0832985,120040.0,120030.0,0.2909404]
[1755022699652,1.0109085,120040.0,120030.0,0.3332149]
[1755022700253,1.0109085,120040.0,120030.0,0.3532149]
[1755022700453,1.5108085,120040.0,120030.0,0.3532149]
[1755022701356,1.5108085,120040.0,120010.0,0.62828172]
[1755022701357,0.202203,120020.0,120010.0,0.62828172]
[1755022702662,0.202203,120020.0,120010.0,0.63028172]
[1755022703053,0.11889,120020.0,120010.0,0.63028172]
[1755022704061,0.4999,120030.0,120020.0,0.124343]
[1755022704353,0.4999,120030.0,120020.0,0.62827882]
[1755022704556,0.52268,120030.0,120020.0,0.62827882]
[1755022705162,0.52268,120030.0,120020.0,0.62927882]
[1755022705759,0.4999,120030.0,120020.0,0.63027882]
[1755022706059,0.90503,120070.0,120060.0,0.0832837]
[1755022706259,0.09611,120070.0,120060.0,0.58721952]
[1755022706760,0.11889,120070.0,120060.0,0.58721952]
[1755022707150,0.11889,120070.0,120060.0,0.0832837]
[1755022707355,0.11889,120070.0,120060.0,0.58721952]
[1755022707664,0.11889,120070.0,120060.0,0.0832837]
[1755022708155,0.70610422,120070.0,120060.0,0.0832837]
[1755022708555,0.2021684,120070.0,120060.0,0.0832837]
[1755022709261,0.70610422,120070.0,120060.0,0.0832837]
[1755022710258,0.2021684,120070.0,120060.0,0.0832837]
[1755022710660,1.51358422,120070.0,120060.0,0.0832837]
[1755022711454,1.0096484,120070.0,120060.0,0.0832837]
[1755022712459,0.70610422,120070.0,120060.0,0.0832837]
[1755022712765,1.51306422,120070.0,120060.0,0.0832837]
[1755022714073,1.0091284,120070.0,120060.0,0.0832837]
[1755022714263,1.51306422,120070.0,120060.0,0.0832837]
[1755022714464,1.0091284,120070.0,120060.0,0.0832837]
[1755022714660,1.51306422,120070.0,120060.0,0.0832837]
[1755022714856,0.70610422,120070.0,120060.0,0.0832837]
[1755022715063,1.51302422,120070.0,120060.0,0.0832837]
[1755022715756,1.5089884,120070.0,120060.0,0.0832837]
[1755022715959,2.01292422,120070.0,120060.0,0.0832837]
[1755022716662,1.5089884,120070.0,120060.0,0.0832837]
[1755022716858,2.01252422,120070.0,120060.0,0.0832837]
[1755022717064,1.5085884,120070.0,120060.0,0.0832837]
[1755022717564,1.5081884,120070.0,120060.0,0.0832837]
[1755022717869,0.7020684,120070.0,120060.0,0.0832837]
[1755022718164,1.5083484,120070.0,120060.0,0.0832837]
[1755022720269,1.5077484,120070.0,120060.0,0.0832837]
[1755022720469,0.7020684,120070.0,120060.0,0.0832837]
[1755022720668,1.5074684,120070.0,120060.0,0.0832837]
[1755022721768,2.01140422,120070.0,120060.0,0.0832837]
[1755022721969,1.0075684,120070.0,120060.0,0.0832837]
[1755022722166,0.2021684,120070.0,120060.0,0.0832837]
[1755022722470,1.0075684,120070.0,120060.0,0.0832837]
[1755022723267,1.5074684,120070.0,120060.0,0.0832837]
[1755022723568,0.7020684,120070.0,120060.0,0.0832837]
[1755022723865,0.7020684,120070.0,120060.0,0.58721952]
[1755022724071,0.02285,120100.0,120090.0,0.0832644]
[1755022724367,0.10509,120110.0,120100.0,0.0832575]
[1755022724568,0.24934,120110.0,120100.0,0.58719332]
[1755022724770,0.11934,120110.0,120100.0,0.58719332]
[1755022725170,0.11934,120110.0,120100.0,0.0832575]
[1755022725466,0.08934,120110.0,120100.0,0.1058175]
[1755022725764,0.08934,120110.0,120100.0,0.59434332]
[1755022725968,0.08934,120110.0,120100.0,0.60975332]
[1755022726167,0.08934,120110.0,120100.0,0.62119332]
[1755022726369,0.08934,120110.0,120100.0,0.64384332]
[1755022727364,0.11219,120110.0,120100.0,0.64384332]
[1755022727770,1.57128,120120.0,120110.0,0.0832504]
[1755022727972,1.57128,120120.0,120110.0,0.58718622]
[1755022728271,2.37648,120120.0,120110.0,0.58718622]
[1755022728470,1.57128,120120.0,120110.0,0.59433622]
[1755022728873,2.3762,120120.0,120110.0,0.59433622]
[1755022729058,2.3762,120120.0,120110.0,0.58718622]
[1755022729265,2.4591636,120120.0,120110.0,0.58718622]
[1755022729764,2.4591636,120120.0,120110.0,0.59433622]
[1755022730169,1.57128,120120.0,120110.0,0.59433622]
[1755022730370,2.37532,120120.0,120110.0,0.60974622]
[1755022730871,1.53418,120120.0,120110.0,0.58718622]
[1755022731166,1.55703,120120.0,120110.0,0.62118622]
[1755022731372,1.57128,120120.0,120110.0,0.1399004]
[1755022731571,1.57128,120120.0,120110.0,0.64383622]
[1755022732177,1.52285,120120.0,120110.0,0.64383622]
[1755022732670,0.52275,120130.0,120120.0,0.1398936]
[1755022732971,0.10303,120130.0,120120.0,1.14776524]
[1755022733168,7.00008,120150.0,120140.0,0.08323]
[1755022733379,7.07136,120150.0,120140.0,0.62116582]
[1755022733674,8.57136,120150.0,120140.0,0.62116582]
[1755022734077,9.09482215,120150.0,120140.0,0.62116582]
[1755022734267,9.08057215,120150.0,120140.0,0.64381582]
[1755022734470,9.05701,120150.0,120140.0,0.64381582]